bitfinex-derivatives/quotes_ETHF0:USTF0_20250530
["timestamp","ask_amount","ask_price","bid_price","bid_amount"]
[1748588884845,0.7613,2626.3,2625.6,1.90371]
[1748588885051,1.18990206,2626.2,2626.1,3.2078]
[1748588885242,0.76132,2626.2,2626.1,7.2398]
[1748588885435,0.76132,2626.2,2626.1,4.032]
[1748588885742,1.95118668,2626.2,2626.1,4.032]
[1748588887047,1.87511603,2626.4,2625.9,0.00571603]
[1748588887249,3.2078,2625.8,2623.8,0.6216]
[1748588887548,3.2078,2624.3,2623.9,0.07622241]
[1748588887743,0.76193,2624.2,2624.0,4.031]
[1748588888040,0.76193,2624.2,2624.1,0.0762166]
[1748588888647,2.06113,2624.2,2624.1,0.0762166]
[1748588888850,0.76193,2624.1,2624.0,4.031]
[1748588890752,0.76199,2623.9,2623.8,0.00571603]
[1748588895348,8.96979,2623.9,2623.8,0.00571603]
[1748588895648,1.90518,2623.7,2623.1,1.2526]
[1748588895957,0.76218,2623.3,2623.1,1.2526]
[1748588896756,4.5019,2623.6,2623.1,1.2526]
[1748588896950,0.76219,2623.2,2623.1,1.2526]
[1748588897655,0.76218,2623.3,2623.1,1.2526]
[1748588897857,0.76218,2623.3,2623.2,1.2739]
[1748588898752,0.76222,2623.1,2623.0,3.2078]
[1748588899248,0.76225,2623.0,2622.9,0.003818]
[1748588899448,2.00895,2623.0,2622.9,0.003818]
[1748588899656,2.00895,2623.0,2622.4,0.76241]
[1748588899860,1.90618,2622.3,2620.9,3.2078]
[1748588900161,3.2078,2621.4,2621.0,2.11300675]
[1748588900457,0.76264,2621.7,2621.3,0.76274]
[1748588900652,3.21351603,2621.8,2621.4,5.2855]
[1748588900854,3.21351603,2621.8,2621.4,5.2865]
[1748588901061,0.76268,2621.5,2621.4,5.2865]
[1748588901246,3.2078,2621.5,2621.3,4.034]
[1748588901456,3.9705,2621.5,2621.3,4.034]
[1748588901652,3.9705,2621.5,2621.4,1.2525]
[1748588902557,3.97048,2621.5,2621.4,4.034]
[1748588902759,0.76277,2621.2,2621.1,1.2525]
[1748588903060,0.76283,2621.0,2620.9,4.034]
[1748588903255,3.2078,2621.2,2620.9,4.034]
[1748588903454,0.76281,2621.1,2620.9,4.034]
[1748588903647,0.76281,2621.1,2620.9,5.2865]
[1748588903958,3.2078,2621.2,2620.9,5.2865]
[1748588904152,3.97059,2621.2,2620.9,6.04934]
[1748588904358,3.2078,2621.2,2620.9,6.04934]
[1748588904750,3.2078,2621.2,2621.0,0.76283]
[1748588904949,3.97059,2621.2,2621.1,4.035]
[1748588905155,3.2078,2621.2,2620.9,4.035]
[1748588905659,3.2078,2621.2,2621.0,6.01512]
[1748588906151,3.97057,2621.2,2621.0,5.2523]
[1748588906553,3.97057,2621.2,2620.9,0.76285]
[1748588906749,3.97057,2621.2,2621.0,4.036]
[1748588907359,3.2078,2621.5,2621.4,0.76271]
[1748588907563,0.1907,2621.6,2621.5,0.76268]
[1748588907752,0.1907,2621.6,2621.5,1.98238]
[1748588908359,0.1907,2621.6,2621.4,4.036]
[1748588908664,0.95337,2621.6,2621.4,4.036]
[1748588909153,0.95337,2621.6,2621.4,5.2557]
[1748588910353,0.95337,2621.6,2621.4,1.2197]
[1748588910557,0.76282,2621.1,2620.7,0.7629]
[1748588910761,3.2078,2621.2,2620.7,1.2206]
[1748588910956,3.2078,2621.2,2620.5,3.2078]
[1748588910957,3.2078,2620.9,2619.0,1.90854]
[1748588911161,3.2078,2619.4,2619.1,0.0763621]
[1748588911358,3.2078,2619.3,2619.2,0.76334]
[1748588911563,3.97115,2619.3,2619.1,1.9432621]
[1748588911761,3.2078,2619.3,2619.2,0.07635919]
[1748588912163,3.97112,2619.3,2619.2,0.07635919]
[1748588912366,3.2078,2619.3,2619.2,4.19735919]
[1748588912865,3.2078,2619.3,2619.2,0.07635919]
[1748588913463,3.2078,2619.3,2619.2,4.19735919]
[1748588913659,3.2078,2619.3,2619.2,0.07635919]
[1748588913864,5.31092,2619.3,2619.2,0.07635919]
[1748588914073,4.5476,2619.3,2619.2,0.07635919]
[1748588914371,3.2078,2619.3,2619.2,0.76335]
[1748588915177,3.2078,2619.3,2619.2,5.76335]
[1748588915370,3.2078,2619.6,2619.5,0.76327]
[1748588915661,3.2078,2619.6,2619.5,4.88527]
[1748588915869,3.2078,2619.6,2619.5,4.122]
[1748588916668,3.97104,2619.6,2619.5,4.122]
[1748588916871,3.97104,2619.6,2619.3,5.9]
[1748588917066,2.09408,2619.5,2619.2,38.464]
[1748588917262,3.2078,2619.3,2619.2,38.464]
[1748588917465,3.2078,2619.3,2619.2,42.586]
[1748588917772,3.2078,2619.3,2619.2,43.34935]
[1748588918070,3.2078,2619.3,2619.2,42.586]
[1748588918265,3.97112,2619.3,2619.2,42.586]
[1748588918564,9.5386,2619.3,2618.3,0.30361325]
[1748588918764,3.2078,2618.7,2618.6,0.76353]
[1748588919164,3.2078,2618.7,2618.4,11.2509]
[1748588919569,3.2078,2618.7,2618.6,0.76353]
[1748588919870,0.00572727,2618.8,2618.7,0.7635]
[1748588921271,0.00572727,2618.8,2618.6,0.76352]
[1748588921460,3.2078,2618.7,2618.6,0.76352]
[1748588922770,3.3987,2618.7,2618.6,0.76352]
[1748588923168,3.3987,2618.7,2618.2,39.41358375]
[1748588923169,3.3987,2618.7,2618.5,4.124]
[1748588923468,3.3987,2618.7,2618.5,4.88754]
[1748588924371,3.3987,2618.7,2618.6,0.76353]
[1748588924567,3.3987,2618.7,2618.6,2.06223]
[1748588926665,0.1909,2618.7,2618.6,2.06223]
[1748588926970,0.1909,2618.7,2618.6,5.27003]
[1748588927172,3.2078,2619.1,2619.0,0.76341]
[1748588927364,3.2078,2619.4,2619.3,0.76333]
[1748588927674,3.2078,2619.4,2619.3,4.88733]
[1748588928077,3.2078,2619.7,2619.6,0.76323]
[1748588928274,3.2078,2619.7,2619.6,4.88723]
[1748588929171,3.2078,2619.7,2619.4,4.124]
[1748588929382,1.3367,2619.6,2619.5,0.76327]
[1748588929790,3.2078,2619.7,2619.6,0.76324]
[1748588931182,3.2078,2619.7,2619.6,5.76324]
[1748588931384,3.2078,2619.7,2619.6,0.76324]
[1748588931877,3.2078,2619.7,2619.6,4.124]
[1748588932080,3.2078,2619.7,2619.6,4.88724]
[1748588932777,3.2078,2619.7,2619.6,4.124]
[1748588932983,4.3880082,2619.7,2619.6,4.124]
[1748588933183,6.3635182,2619.7,2619.6,4.124]
[1748588933485,5.6003082,2619.7,2619.6,4.124]
[1748588933879,5.60038106,2619.7,2619.1,0.00572727]
[1748588934080,3.2078,2619.2,2619.1,0.00572727]
[1748588934390,5.1512462,2619.2,2619.1,0.00572727]
[1748588934880,10.1512462,2619.2,2619.1,0.00572727]
[1748588936083,10.1512462,2619.2,2618.7,42.604]
[1748588936084,9.3878862,2619.2,2618.5,4.124]
[1748588936278,3.2078,2618.6,2617.8,5.4245]
[1748588936488,3.2078,2618.1,2617.9,0.84011711]
[1748588936791,3.2078,2618.1,2618.0,0.07639419]
[1748588937091,4.3878862,2618.1,2618.0,0.07639419]
[1748588938086,4.3878862,2618.1,2618.0,0.84009419]
[1748588938687,4.3878862,2618.1,2618.0,0.07639419]
[1748588939488,4.3878862,2618.1,2618.0,0.84002419]
[1748588939988,0.00572727,2618.3,2618.2,0.76358]
[1748588940190,7.27e-06,2618.3,2618.2,0.76358]
[1748588940386,3.2078,2619.0,2618.9,0.76337]
[1748588940592,3.2078,2619.0,2618.9,4.88837]
[1748588940787,3.2078,2619.0,2618.9,4.125]
[1748588941188,4.3832338,2619.0,2618.9,4.125]
[1748588941488,4.3832338,2619.0,2618.9,4.88837]
[1748588941784,4.3832338,2619.0,2618.7,0.00572727]
[1748588941989,3.18882122,2619.0,2618.9,5.04637]
[1748588942183,3.18882122,2619.0,2618.9,4.283]
[1748588942982,3.18882122,2619.0,2618.9,5.04637]
[1748588943886,0.00572727,2619.2,2619.1,0.76331]
[1748588944085,1.18137395,2619.2,2619.1,0.76331]
[1748588946590,0.00572727,2619.2,2619.1,0.76331]
[1748588946991,1.18113128,2619.2,2619.1,0.76331]
[1748588947793,1.18113781,2619.2,2619.1,0.76331]
[1748588948094,1.18113781,2619.2,2618.7,0.00572727]
[1748588948295,0.00572727,2619.2,2618.9,0.76337]
[1748588948594,0.00572727,2619.2,2619.0,0.76333]
[1748588948792,0.00572727,2619.2,2619.1,0.76331]
[1748588953502,0.7634,2618.8,2618.7,0.00572727]
[1748588953701,0.76345,2618.7,2618.2,0.76356]
[1748588953998,3.2078,2618.3,2618.2,0.76356]
[1748588954192,3.2078,2618.6,2618.5,0.76349]
[1748588954397,1.8908,2618.6,2618.5,0.76349]
[1748588954599,3.21352727,2619.2,2619.1,0.76331]
[1748588954801,3.21352727,2619.2,2619.1,4.282]
[1748588955299,3.21352727,2619.2,2618.8,3.2078]
[1748588955500,3.97117,2618.9,2618.8,4.283]
[1748588955797,3.2078,2618.9,2618.5,38.484]
[1748588955995,1.2661,2618.8,2618.6,4.283]
[1748588956192,2.0295,2618.8,2618.5,38.484]
[1748588956395,0.76343,2618.7,2618.6,4.283]
[1748588956598,1.2661,2618.7,2618.6,4.283]
[1748588956798,1.2661,2618.7,2618.6,5.04646]
[1748588956998,1.2661,2618.7,2618.6,4.283]
[1748588957192,1.2661,2618.7,2618.6,5.04646]
[1748588957399,0.6703,2619.0,2618.6,4.283]
[1748588957600,0.6703,2619.0,2618.6,5.5575]
[1748588957892,1.2661,2619.1,2619.0,0.76334]
[1748588958105,0.1909,2619.1,2619.0,5.04631]
[1748588961906,0.1909,2619.1,2618.7,1.2745]
[1748588961907,8.3987,2619.1,2618.3,4.283]
[1748588962097,3.2078,2618.5,2618.3,4.283]
[1748588962406,1.3096,2618.4,2618.3,4.283]
[1748588963101,2.07312,2618.4,2618.3,4.283]
[1748588964703,0.76355,2618.3,2617.9,2.07604]
[1748588964903,1.2535,2618.2,2618.0,5.04662]
[1748588965298,3.2078,2618.5,2618.1,3.2078]
[1748588965507,3.2078,2618.5,2618.2,1.97426]
[1748588965508,0.76349,2618.5,2618.2,1.97426]
[1748588965709,3.2078,2618.8,2618.3,1.2107]
[1748588965909,0.76347,2618.6,2618.4,4.283]
[1748588966107,0.76347,2618.6,2618.4,5.4937]
[1748588966707,1.2535,2618.7,2618.4,5.4937]
[1748588966911,3.9713,2618.5,2618.2,0.76357]
[1748588967210,1.2535,2618.4,2618.3,4.283]
[1748588967511,3.2078,2618.5,2618.3,5.04653]
[1748588967710,3.97129,2618.5,2618.3,5.04653]
[1748588968013,3.2078,2618.5,2618.3,5.04654]
[1748588968713,3.2078,2618.5,2618.4,0.76352]
[1748588968909,0.6088,2619.0,2618.3,4.283]
[1748588969112,0.6088,2619.0,2618.8,0.76337]
[1748588969310,2.67044,2619.0,2618.9,4.283]
[1748588970409,1.9071,2619.0,2618.1,3.2078]
[1748588970607,3.2078,2618.8,2618.3,0.76353]
[1748588970807,0.76348,2618.6,2618.3,0.76353]
[1748588971012,1.2392,2618.5,2618.3,0.76354]
[1748588971512,1.2392,2618.5,2618.2,5.5712]
[1748588971815,0.76354,2618.3,2618.2,4.283]
[1748588972206,3.2078,2618.5,2618.4,0.76352]
[1748588972410,3.2078,2618.9,2618.4,1.9088]
[1748588972612,3.2078,2618.9,2618.7,0.76342]
[1748588972912,1.17573292,2618.8,2618.1,4.31]
[1748588973110,3.2078,2618.6,2618.2,0.76357]
[1748588973318,1.2392,2618.5,2618.4,0.76352]
[1748588973616,1.37615,2618.7,2618.6,0.76346]
[1748588973617,0.6127,2618.7,2618.6,0.76346]
[1748588973823,0.6127,2618.7,2618.6,5.07346]
[1748588974408,4.5365,2618.9,2618.6,5.07345]
[1748588974612,0.76343,2618.7,2618.2,1.3209]
[1748588974816,1.3287,2618.6,2618.4,0.76349]
[1748588975116,1.3287,2618.6,2618.5,5.07349]
[1748588975319,1.3287,2618.6,2618.4,0.7635]
[1748588975619,4.5365,2618.6,2618.5,5.07349]
[1748588976216,1.3287,2618.6,2618.5,0.76349]
[1748588976419,1.3287,2618.6,2618.5,5.07349]
[1748588976621,0.6235,2619.1,2618.3,1.90887]
[1748588976914,4.52632727,2619.2,2619.1,0.57241]
[1748588977116,4.52632727,2619.2,2619.1,4.31]
[1748588977322,9.52632727,2619.2,2618.9,4.31]
[1748588977622,0.76334,2619.0,2618.9,4.31]
[1748588978113,2.07614,2619.0,2618.9,4.31]
[1748588978612,2.07614,2619.0,2618.0,2.55375]
[1748588978613,6.3128,2619.0,2617.2,3.2078]
[1748588978812,3.2078,2618.0,2617.8,0.76367]
[1748588979013,3.2078,2618.0,2617.9,4.31]
[1748588979219,3.2078,2618.0,2617.9,0.76366]
[1748588979415,3.2078,2618.0,2617.9,5.07366]
[1748588979719,3.2078,2618.4,2618.2,0.76356]
[1748588979920,0.76347,2618.6,2618.0,1.3204]
[1748588980112,1.3419,2618.5,2618.3,0.76353]
[1748588980312,1.3419,2618.5,2618.0,1.3204]
[1748588980313,1.3419,2618.5,2618.4,4.31]
[1748588981524,1.3419,2618.5,2618.0,1.3204]
[1748588981720,1.3419,2618.5,2618.4,4.31]
[1748588982420,1.3419,2618.5,2618.4,5.07352]
[1748588982621,0.76347,2618.6,2618.4,4.31]
[1748588982824,2.00847,2618.6,2618.4,4.31]
[1748588983517,2.00848,2618.6,2618.3,0.76354]
[1748588983716,2.00848,2618.6,2618.5,4.31]
[1748588983916,1.245,2618.6,2618.3,0.76354]
[1748588984118,2.00847,2618.6,2618.3,0.76354]
[1748588984422,1.245,2618.6,2618.4,4.31]
[1748588984623,2.00846,2618.6,2618.5,4.31]
[1748588984816,1.245,2618.6,2618.5,4.31]
[1748588985529,1.245,2618.6,2618.0,1.3204]
[1748588985722,1.245,2618.6,2618.1,4.31]
[1748588985919,3.2078,2618.7,2618.2,1.2539]
[1748588986121,3.2078,2618.7,2618.6,0.76346]
[1748588986321,3.2078,2618.7,2618.6,5.07346]
[1748588987823,3.2078,2618.7,2618.3,39.1114]
[1748588988015,3.2078,2618.7,2618.4,4.31]
[1748588988213,1.2306,2618.6,2618.4,5.07352]
[1748588988611,1.99407,2618.6,2618.4,4.31]
[1748588989020,1.2306,2618.6,2618.4,4.31]
[1748588989219,0.76349,2618.5,2618.4,4.31]
[1748588989419,1.99407,2618.6,2618.4,5.07351]
[1748588989621,1.2306,2618.6,2618.4,5.07351]
[1748588990221,1.99407,2618.6,2618.4,5.07351]
[1748588990422,3.2078,2618.7,2618.5,0.76349]
[1748588990823,5.21463,2618.7,2618.5,0.76349]
[1748588991023,4.4512,2618.7,2618.4,4.31]
[1748588991220,3.2078,2618.7,2618.5,1.2865]
[1748588991426,3.2078,2618.7,2618.6,0.76346]
[1748588991625,0.1909,2618.9,2618.5,1.2865]
[1748588991930,0.1909,2618.9,2618.8,0.7634]
[1748588992125,0.1909,2618.9,2618.8,5.0734]
[1748588992729,0.1909,2618.9,2618.8,4.31]
[1748588993124,0.1909,2618.9,2618.8,5.0734]
[1748588994032,3.2078,2619.0,2618.9,0.76337]
[1748588994934,3.2078,2619.6,2619.5,0.7632]
[1748588995126,1.2573,2619.9,2619.8,0.76311]
[1748588995520,2.02039,2619.9,2619.6,0.76316]
[1748588995731,1.2573,2619.9,2619.5,5.6399]
[1748588995931,0.76313,2619.8,2619.5,6.40308]
[1748588996329,1.2573,2619.7,2619.5,6.40308]
[1748588996726,1.2573,2619.7,2619.5,5.6399]
[1748588996928,1.2573,2619.7,2619.5,6.40307]
[1748588997128,1.2573,2619.7,2619.6,0.76317]
[1748588997330,1.2573,2619.7,2619.5,6.40307]
[1748588997832,1.2573,2619.7,2619.6,0.76317]
[1748588998029,3.2078,2619.7,2619.6,0.76317]
[1748588998430,0.53728727,2620.0,2619.9,0.76308]
[1748588998431,3.74508727,2620.0,2619.9,0.76308]
[1748588998735,3.74508727,2620.0,2619.9,5.07308]
[1748589001033,3.74508727,2620.0,2619.9,4.309]
[1748589001232,4.50813727,2620.0,2619.9,4.309]
[1748589002031,5.82283727,2620.0,2619.9,4.309]
[1748589002428,5.05978727,2620.0,2619.5,38.489]
[1748589002630,3.97094,2619.7,2619.6,4.301]
[1748589003835,0.76317,2619.6,2619.5,38.489]
[1748589004031,2.00437,2619.6,2619.5,38.489]
[1748589004230,2.00437,2619.6,2619.5,42.79]
[1748589004534,2.00437,2619.6,2619.5,38.489]
[1748589004733,1.2412,2619.6,2619.5,43.5532]
[1748589004932,3.2078,2619.7,2619.5,42.79]
[1748589005128,0.76317,2619.6,2619.5,42.79]
[1748589005936,5.76317,2619.6,2619.5,4.301]
[1748589006135,7.00437,2619.6,2619.5,4.301]
[1748589007534,7.00437,2619.6,2619.5,3.22082]
[1748589007739,0.76339,2618.9,2618.5,39.7349]
[1748589007933,3.97119,2618.9,2618.7,0.76341]
[1748589008234,3.97119,2618.9,2618.8,0.7634]
[1748589008540,3.97119,2618.9,2618.8,4.301]
[1748589009039,0.76344,2618.7,2618.6,0.76346]
[1748589009339,0.76343,2618.7,2618.6,4.301]
[1748589010131,0.76343,2618.7,2618.6,5.06446]
[1748589010327,0.76343,2618.7,2618.6,4.301]
[1748589015558,0.76346,2618.6,2618.5,42.784]
[1748589015837,4.16216,2618.6,2618.5,42.784]
[1748589017946,3.3987,2618.6,2618.5,42.784]
[1748589018142,0.1909,2618.6,2618.5,43.54749]
[1748589018341,0.76335,2619.0,2618.9,0.76335]
[1748589018645,0.76336,2619.0,2618.9,4.302]
[1748589021348,0.76336,2619.0,2618.9,5.6213]
[1748589022743,0.95423,2619.1,2618.9,5.6213]
[1748589023055,0.1909,2619.1,2619.0,0.76335]
[1748589023239,0.1909,2619.1,2619.0,2.07965]
[1748589023444,0.1909,2619.1,2618.6,3.2078]
[1748589023638,1.5008,2619.1,2618.7,4.302]
[1748589023841,1.5008,2619.1,2618.7,6.38173]
[1748589023842,0.7634,2618.9,2618.7,6.38173]
[1748589024044,0.7634,2618.9,2618.8,1.3163]
[1748589025444,0.76337,2618.9,2618.8,1.3163]
[1748589025640,3.2078,2618.9,2618.8,2.0797]
[1748589025843,0.76337,2619.0,2618.8,6.8699]
[1748589026046,0.76337,2618.9,2618.8,2.5679]
[1748589026247,0.76337,2618.9,2618.8,6.8699]
[1748589026452,0.76337,2618.9,2618.8,0.6251]
[1748589026649,0.76337,2618.9,2618.8,4.302]
[1748589026849,2.07467,2618.9,2618.8,4.302]
[1748589034256,3.25018257,2618.9,2618.8,4.302]
[1748589035350,2.07467,2618.9,2618.8,4.302]
[1748589035753,3.25052116,2618.9,2618.8,4.302]
[1748589037951,2.07467,2618.9,2618.8,4.302]
[1748589038355,3.3987,2619.0,2618.9,0.76337]
[1748589038659,4.16205,2619.0,2618.9,1.3388]
[1748589038852,0.76337,2618.9,2618.8,4.302]
[1748589039051,0.76337,2618.9,2618.8,5.0654]
[1748589039557,0.76341,2618.8,2618.7,0.76342]
[1748589039758,0.76341,2618.8,2618.7,4.196]
[1748589040155,0.76341,2618.8,2618.7,4.95943]
[1748589040460,0.76341,2618.8,2618.7,4.196]
[1748589042157,0.76346,2618.6,2618.5,38.482]
[1748589042354,3.97126,2618.6,2618.5,4.196]
[1748589042554,0.76361,2618.1,2618.0,3.2078]
[1748589042758,0.76361,2618.1,2618.0,4.196]
[1748589043162,3.21352727,2618.3,2618.0,4.95964]
[1748589043359,0.76358,2618.2,2618.0,4.95964]
[1748589043559,0.76358,2618.2,2618.1,0.76361]
[1748589043752,0.76361,2618.1,2618.0,4.196]
[1748589044467,0.76361,2618.1,2618.0,5.4107]
[1748589044658,3.21352727,2618.3,2618.0,5.4107]
[1748589045257,3.97707727,2618.3,2618.1,0.76359]
[1748589045455,3.21352727,2618.3,2618.2,1.97828]
[1748589045660,3.21352727,2618.3,2618.2,1.2147]
[1748589046065,3.97707727,2618.3,2618.2,1.2147]
[1748589046360,0.76358,2618.2,2617.9,0.76365]
[1748589046561,0.00572727,2618.3,2617.9,2.5357]
[1748589046864,0.76364,2618.0,2617.9,2.5357]
[1748589047064,0.76364,2618.0,2617.9,6.7317]
[1748589047564,0.76363,2618.1,2617.9,6.7317]
[1748589047958,0.76358,2618.2,2617.9,6.7317]
[1748589048159,0.76362,2618.1,2617.9,6.7317]
[1748589048562,1.30682727,2618.3,2617.7,3.2078]
[1748589048860,0.76369,2617.9,2617.8,4.196]
[1748589049065,1.3011,2618.0,2617.8,4.196]
[1748589049267,0.76365,2618.0,2617.8,4.196]
[1748589049564,3.2078,2618.1,2617.8,4.196]
[1748589050067,0.76364,2618.0,2617.8,4.95968]
[1748589050269,4.5481,2618.1,2617.8,4.196]
[1748589050560,0.76367,2617.9,2617.8,4.196]
[1748589050765,3.2078,2618.1,2617.9,0.76365]
[1748589050966,0.76365,2618.0,2617.8,4.95968]
[1748589051162,3.2078,2618.1,2617.6,1.2623]
[1748589051368,2.10394,2618.0,2617.9,4.196]
[1748589052461,1.3403,2618.0,2617.9,4.196]
[1748589052660,2.10394,2618.0,2617.9,4.196]
[1748589052866,0.76367,2617.9,2617.7,0.76371]
[1748589053071,1.3265,2617.9,2617.8,4.9597]
[1748589053370,2.09017,2617.9,2617.8,4.196]
[1748589054763,1.3265,2617.9,2617.5,39.742]
[1748589054968,0.76372,2617.8,2617.7,0.76372]
[1748589055267,1.3265,2617.9,2617.7,0.76372]
[1748589055567,0.7637,2617.8,2617.7,0.76372]
[1748589055766,1.3265,2617.9,2617.8,0.7637]
[1748589056062,3.2078,2618.1,2618.0,0.76364]
[1748589056063,3.97142,2618.1,2618.0,0.76364]
[1748589056569,0.76365,2618.0,2617.9,0.76366]
[1748589056970,3.2078,2618.1,2617.4,3.2078]
[1748589057172,3.2078,2617.6,2617.5,0.76377]
[1748589057364,3.97155,2617.6,2617.4,4.96079]
[1748589057669,3.2078,2617.6,2617.4,4.197]
[1748589057858,3.2078,2617.6,2617.4,4.96079]
[1748589057859,3.97156,2617.6,2617.4,4.96079]
[1748589058062,3.2078,2617.6,2617.5,0.76378]
[1748589058366,3.97155,2617.6,2617.4,4.96079]
[1748589058666,3.2078,2617.6,2617.4,4.96079]
[1748589059167,3.97156,2617.6,2617.4,4.197]
[1748589059770,3.2078,2617.6,2617.4,6.19711]
[1748589060070,3.97156,2617.6,2617.4,5.4333]
[1748589060364,0.76378,2617.5,2617.4,5.4333]
[1748589060667,3.2078,2617.6,2617.4,5.4333]
[1748589060863,3.2078,2618.0,2617.4,7.34283]
[1748589061068,0.7637,2617.8,2617.6,0.76374]
[1748589061263,0.7637,2617.8,2617.7,5.4333]
[1748589061464,3.2078,2618.0,2617.7,5.4333]
[1748589061663,1.3012,2618.2,2617.8,1.284]
[1748589061970,0.76364,2618.0,2617.9,0.6335]
[1748589062265,0.76363,2618.1,2617.9,0.6335]
[1748589062472,0.76363,2618.1,2618.0,1.284]
[1748589063565,0.76363,2618.1,2617.4,0.7638]
[1748589063566,0.76375,2617.7,2617.4,0.7638]
[1748589063763,0.76375,2617.7,2617.5,4.109]
[1748589063961,0.76375,2617.7,2617.6,5.393]
[1748589064470,4.4167,2618.0,2617.6,5.393]
[1748589064668,0.76372,2617.7,2617.6,1.284]
[1748589064869,0.76372,2617.7,2617.6,5.393]
[1748589065068,0.76371,2617.8,2617.6,5.393]
[1748589065962,0.191,2617.7,2617.6,6.15675]
[1748589066567,0.191,2617.7,2617.6,5.393]
[1748589066767,0.95472,2617.7,2617.6,5.393]
[1748589066969,0.191,2617.7,2617.6,5.393]
[1748589067171,0.191,2617.7,2617.6,6.15675]
[1748589067567,0.191,2617.7,2617.6,4.109]
[1748589067864,5.46832,2617.7,2617.6,4.109]
[1748589070067,0.76381,2617.4,2617.3,4.109]
[1748589070262,3.97169,2617.2,2617.1,0.7639]
[1748589070465,3.97169,2617.2,2617.1,4.8729]
[1748589070668,3.2078,2617.2,2617.1,4.8729]
[1748589071069,3.97167,2617.2,2617.1,4.8729]
[1748589071264,4.4237,2617.2,2617.1,4.8729]
[1748589071570,4.4237,2617.2,2616.7,4.109]
[1748589071773,0.76394,2617.0,2616.8,0.76398]
[1748589071974,1.2159,2616.9,2616.7,4.873]
[1748589072474,1.2159,2616.9,2616.8,0.76399]
[1748589072971,3.97169,2617.2,2616.8,0.76399]
[1748589073273,3.2078,2617.2,2617.1,0.7639]
[1748589073476,4.16255,2617.7,2617.1,4.109]
[1748589073670,4.16255,2617.7,2617.5,0.76377]
[1748589073671,3.3988,2617.7,2617.5,0.76377]
[1748589073979,3.3988,2617.7,2617.6,4.109]
[1748589074173,4.16252,2617.7,2617.6,4.109]
[1748589079177,3.3988,2617.7,2616.6,41.7098]
[1748589079376,3.2078,2617.2,2616.7,4.109]
[1748589079584,0.76392,2617.1,2616.9,0.76393]
[1748589079782,0.76392,2617.1,2617.0,0.76393]
[1748589079978,0.76393,2617.0,2616.9,0.76394]
[1748589080279,3.2078,2617.2,2616.9,1.3049]
[1748589080485,0.76387,2617.3,2617.1,0.76389]
[1748589080681,0.76387,2617.3,2617.2,4.87287]
[1748589080888,0.76387,2617.3,2617.2,4.109]
[1748589081490,1.61417,2617.3,2617.2,4.109]
[1748589082384,0.76396,2616.9,2616.8,4.109]
[1748589082687,3.2078,2616.9,2616.8,4.87299]
[1748589082988,0.8503,2617.3,2616.8,4.87299]
[1748589082989,3.2078,2617.2,2617.1,0.7639]
[1748589083194,3.2078,2617.2,2617.1,4.109]
[1748589083391,3.2078,2617.2,2617.1,4.8729]
[1748589084094,3.97167,2617.2,2617.1,5.447]
[1748589085096,3.97167,2617.2,2617.1,4.109]
[1748589085793,3.2078,2617.2,2617.1,4.8729]
[1748589087204,0.95485,2617.3,2617.1,4.8729]
[1748589087492,0.95485,2617.3,2617.2,1.3061]
[1748589090293,0.191,2617.3,2617.1,4.109]
[1748589090594,0.76387,2617.2,2617.1,5.399]
[1748589090795,3.97167,2617.2,2617.1,5.399]
[1748589091287,3.97167,2617.2,2617.1,4.109]
[1748589091693,0.76399,2616.8,2616.7,1.29]
[1748589091891,0.76399,2616.8,2616.7,5.4]
[1748589092287,0.76399,2616.8,2616.7,4.11]
[1748589093393,3.2078,2616.9,2616.7,4.11]
[1748589093700,3.97178,2616.9,2616.7,6.13131]
[1748589093997,3.2078,2617.2,2616.8,1.2573]
[1748589094198,3.2078,2617.2,2617.1,0.7639]
[1748589094392,0.191,2617.3,2617.2,0.76387]
[1748589094591,0.191,2617.3,2617.2,2.02117]
[1748589094892,0.95484,2617.3,2617.2,1.2573]
[1748589095294,0.95484,2617.3,2616.6,40.41209]
[1748589095295,0.76395,2617.0,2616.6,38.502]
[1748589095595,0.76395,2617.0,2616.8,0.76397]
[1748589095796,4.4344,2617.2,2616.9,4.09]
[1748589096100,0.76393,2617.0,2616.9,4.09]
[1748589096996,1.99053,2617.0,2616.9,4.09]
[1748589098897,0.76393,2617.0,2616.9,4.09]
[1748589099398,0.76393,2617.0,2616.9,5.3289]
[1748589100690,3.2078,2617.1,2616.9,5.3289]
[1748589101002,0.191,2617.3,2616.9,5.3289]
[1748589101199,0.95486,2617.3,2617.1,0.7639]
[1748589101398,0.7639,2617.1,2617.0,0.6317]
[1748589101598,0.7639,2617.1,2617.0,1.9456]
[1748589101800,0.76389,2617.2,2617.0,2.70953]
[1748589102099,0.95486,2617.3,2617.0,2.7095]
[1748589102299,0.76387,2617.2,2617.0,2.7095]
[1748589102992,0.191,2617.3,2617.0,2.7095]
[1748589103197,0.7639,2617.1,2617.0,1.9456]
[1748589103591,0.76389,2617.2,2617.0,2.70953]
[1748589103900,0.76389,2617.2,2617.0,2.70951]
[1748589104399,1.492,2617.3,2617.0,2.70951]
[1748589104400,2.25586,2617.3,2617.1,0.7639]
[1748589104595,0.7639,2617.1,2617.0,1.9456]